[Event "Live Chess"]
[Site "Chess.com"]
[Date "2023.05.21"]
[Round "-"]
[White "OleksiyJr1"]
[Black "Conradical12"]
[Result "1/2-1/2"]
[WhiteElo "968"]
[BlackElo "1607"]
[TimeControl "300"]
[EndTime "23:32:56 PDT"]
[Termination "Game drawn by 50-move rule"]

1. e4 {[%clk 0:04:54.8]} 1... e5 {[%clk 0:04:59.2]} 2. Nf3 {[%clk 0:04:51.8]}
2... Nc6 {[%clk 0:04:55.7]} 3. Bc4 {[%clk 0:04:51.2]} 3... Nf6 {[%clk
0:04:54.1]} 4. Nc3 {[%clk 0:04:50.7]} 4... Nxe4 {[%clk 0:04:52.8]} 5. Nxe4
{[%clk 0:04:48.4]} 5... d5 {[%clk 0:04:52.1]} 6. Bxd5 {[%clk 0:04:47.9]} 6...
Qxd5 {[%clk 0:04:48.8]} 7. d3 {[%clk 0:04:47.5]} 7... f5 {[%clk 0:04:46.4]} 8.
Nc3 {[%clk 0:04:46.3]} 8... Bb4 {[%clk 0:04:43.1]} 9. Bd2 {[%clk 0:04:30.4]}
9... Bxc3 {[%clk 0:04:41.2]} 10. Bxc3 {[%clk 0:04:25.2]} 10... O-O {[%clk
0:04:41.1]} 11. O-O {[%clk 0:04:20.6]} 11... e4 {[%clk 0:04:26.3]} 12. dxe4
{[%clk 0:04:18.9]} 12... Qxd1 {[%clk 0:04:21.4]} 13. Rfxd1 {[%clk 0:04:17.2]}
13... fxe4 {[%clk 0:04:20.7]} 14. Nd4 {[%clk 0:04:14]} 14... Bg4 {[%clk
0:04:16.2]} 15. Re1 {[%clk 0:04:05.9]} 15... Nxd4 {[%clk 0:04:06.4]} 16. Bxd4
{[%clk 0:04:05.8]} 16... Rae8 {[%clk 0:04:04]} 17. c3 {[%clk 0:04:02.2]} 17...
Rf5 {[%clk 0:03:52]} 18. h3 {[%clk 0:04:00.4]} 18... Rb5 {[%clk 0:03:42.8]} 19.
b4 {[%clk 0:03:51.2]} 19... Bf5 {[%clk 0:03:39.3]} 20. g4 {[%clk 0:03:40.6]}
20... Bg6 {[%clk 0:03:34.1]} 21. f4 {[%clk 0:03:37.7]} 21... h5 {[%clk
0:03:29.8]} 22. f5 {[%clk 0:03:36.7]} 22... Bh7 {[%clk 0:03:26.7]} 23. a4 {[%clk
0:03:33]} 23... Rd5 {[%clk 0:03:19.1]} 24. Re3 {[%clk 0:03:28.9]} 24... Rd6
{[%clk 0:03:10.7]} 25. Rae1 {[%clk 0:03:26.7]} 25... hxg4 {[%clk 0:03:00.2]} 26.
hxg4 {[%clk 0:03:25.1]} 26... Ra6 {[%clk 0:02:52.8]} 27. a5 {[%clk 0:03:21.3]}
27... Rh6 {[%clk 0:02:37.4]} 28. Rxe4 {[%clk 0:03:15.7]} 28... Rxe4 {[%clk
0:02:32.4]} 29. Rxe4 {[%clk 0:03:14.2]} 29... Rh4 {[%clk 0:02:31]} 30. Bxa7
{[%clk 0:03:11.6]} 30... Bxf5 {[%clk 0:02:26.2]} 31. Re8+ {[%clk 0:03:09.2]}
31... Kf7 {[%clk 0:02:24.4]} 32. Rb8 {[%clk 0:02:56]} 32... Rxg4+ {[%clk
0:02:04.8]} 33. Kf2 {[%clk 0:02:54.2]} 33... Be4 {[%clk 0:01:43.1]} 34. Rc8
{[%clk 0:02:50.9]} 34... Bc6 {[%clk 0:01:26.8]} 35. Rxc7+ {[%clk 0:02:46.9]}
35... Kf6 {[%clk 0:01:24.2]} 36. Bd4+ {[%clk 0:02:45.3]} 36... Kg6 {[%clk
0:01:21.1]} 37. Rxg7+ {[%clk 0:02:44.1]} 37... Kf5 {[%clk 0:01:19.4]} 38. Rxg4
{[%clk 0:02:44]} 38... Kxg4 {[%clk 0:01:18.6]} 39. Ke3 {[%clk 0:02:43]} 39...
Kf5 {[%clk 0:01:17.9]} 40. Kd3 {[%clk 0:02:41.5]} 40... Ke6 {[%clk 0:01:16.9]}
41. Kc4 {[%clk 0:02:40.9]} 41... Kd7 {[%clk 0:01:15.5]} 42. b5 {[%clk
0:02:36.9]} 42... Bh1 {[%clk 0:01:13.6]} 43. Kb4 {[%clk 0:02:32.9]} 43... Kd6
{[%clk 0:01:11.8]} 44. c4 {[%clk 0:02:31.5]} 44... Kc7 {[%clk 0:01:09.8]} 45.
b6+ {[%clk 0:02:30.1]} 45... Kc6 {[%clk 0:01:08.5]} 46. c5 {[%clk 0:02:28.5]}
46... Bf3 {[%clk 0:01:05]} 47. Kc4 {[%clk 0:02:24.5]} 47... Be2+ {[%clk
0:01:03]} 48. Kc3 {[%clk 0:02:22.9]} 48... Ba6 {[%clk 0:01:00.5]} 49. Kd2 {[%clk
0:02:20.6]} 49... Bb5 {[%clk 0:00:59.5]} 50. Ke3 {[%clk 0:02:19.6]} 50... Ba6
{[%clk 0:00:58.9]} 51. Kf4 {[%clk 0:02:19.1]} 51... Bb5 {[%clk 0:00:58.8]} 52.
Ke5 {[%clk 0:02:18.7]} 52... Ba6 {[%clk 0:00:58.7]} 53. Ke6 {[%clk 0:02:18.3]}
53... Bb5 {[%clk 0:00:58.4]} 54. Ke7 {[%clk 0:02:17.9]} 54... Ba6 {[%clk
0:00:58.3]} 55. Kd8 {[%clk 0:02:17.5]} 55... Bb5 {[%clk 0:00:58]} 56. Kc8 {[%clk
0:02:17.1]} 56... Ba6 {[%clk 0:00:57.4]} 57. Kb8 {[%clk 0:02:16.7]} 57... Kb5
{[%clk 0:00:56.2]} 58. c6 {[%clk 0:01:35.3]} 58... Kxc6 {[%clk 0:00:49.7]} 59.
Ka7 {[%clk 0:01:33.8]} 59... Kb5 {[%clk 0:00:47.6]} 60. Bc3 {[%clk 0:01:33.1]}
60... Kc6 {[%clk 0:00:44]} 61. Bb4 {[%clk 0:01:32]} 61... Kb5 {[%clk 0:00:43.4]}
62. Bd2 {[%clk 0:01:31]} 62... Kc6 {[%clk 0:00:43.3]} 63. Kb8 {[%clk 0:01:29.1]}
63... Kb5 {[%clk 0:00:43.2]} 64. Ka7 {[%clk 0:01:28.1]} 64... Kc6 {[%clk
0:00:43.1]} 65. Kb8 {[%clk 0:01:26.4]} 65... Kb5 {[%clk 0:00:43]} 66. Kc8 {[%clk
0:01:25.8]} 66... Kc6 {[%clk 0:00:42.9]} 67. Kd8 {[%clk 0:01:24.8]} 67... Kb5
{[%clk 0:00:42.8]} 68. Ke7 {[%clk 0:01:23.9]} 68... Kc6 {[%clk 0:00:42.7]} 69.
Ke6 {[%clk 0:01:23.1]} 69... Kb5 {[%clk 0:00:42.6]} 70. Ke5 {[%clk 0:01:22.6]}
70... Kc6 {[%clk 0:00:42.5]} 71. Kd4 {[%clk 0:01:22.3]} 71... Kb5 {[%clk
0:00:42.4]} 72. Kc3 {[%clk 0:01:21.8]} 72... Kc6 {[%clk 0:00:42.3]} 73. Kb3
{[%clk 0:01:19.6]} 73... Kb5 {[%clk 0:00:42.2]} 74. Ka3 {[%clk 0:01:18.9]} 74...
Kc6 {[%clk 0:00:42.1]} 75. Ka4 {[%clk 0:01:18.5]} 75... Bb5+ {[%clk 0:00:39.4]}
76. Kb4 {[%clk 0:01:17.1]} 76... Ba6 {[%clk 0:00:38.7]} 77. Ka4 {[%clk
0:01:15.5]} 77... Bb5+ {[%clk 0:00:37.5]} 78. Ka3 {[%clk 0:01:13.7]} 78... Ba6
{[%clk 0:00:36.9]} 79. Kb3 {[%clk 0:01:12.7]} 79... Kb5 {[%clk 0:00:35.6]} 80.
Kb2 {[%clk 0:01:10.9]} 80... Ka4 {[%clk 0:00:34]} 81. Kc1 {[%clk 0:01:09]} 81...
Bb5 {[%clk 0:00:33.3]} 82. Kd1 {[%clk 0:01:07.6]} 82... Ba6 {[%clk 0:00:33.2]}
83. Ke1 {[%clk 0:01:06.5]} 83... Bb5 {[%clk 0:00:33.1]} 84. Kf2 {[%clk
0:01:03.7]} 84... Ba6 {[%clk 0:00:33]} 85. Ke3 {[%clk 0:01:02.3]} 85... Bb5
{[%clk 0:00:32.9]} 86. Ke4 {[%clk 0:01:01.9]} 86... Ba6 {[%clk 0:00:32.8]} 87.
Kd5 {[%clk 0:01:01.4]} 87... Bb5 {[%clk 0:00:32.7]} 88. Kd6 {[%clk 0:01:01]}
88... Ba6 {[%clk 0:00:32.6]} 89. Kc7 {[%clk 0:01:00.7]} 89... Kb5 {[%clk
0:00:30.1]} 90. Kd6 {[%clk 0:00:59.5]} 90... Kc4 {[%clk 0:00:29]} 91. Kc7 {[%clk
0:00:58.8]} 91... Kd3 {[%clk 0:00:28.1]} 92. Bb4 {[%clk 0:00:56.9]} 92... Kc4
{[%clk 0:00:27.3]} 93. Be1 {[%clk 0:00:55.3]} 93... Kd3 {[%clk 0:00:26.6]} 94.
Kd6 {[%clk 0:00:53]} 94... Ke2 {[%clk 0:00:26.2]} 95. Bb4 {[%clk 0:00:50]} 95...
Kd3 {[%clk 0:00:25.8]} 96. Kc5 {[%clk 0:00:49.1]} 96... Ke4 {[%clk 0:00:24.2]}
97. Bc3 {[%clk 0:00:47.2]} 97... Kd3 {[%clk 0:00:23.7]} 98. Bh8 {[%clk
0:00:43.1]} 98... Kc2 {[%clk 0:00:22.8]} 99. Kb4 {[%clk 0:00:40.9]} 99... Kd1
{[%clk 0:00:22.7]} 100. Be5 {[%clk 0:00:39.5]} 100... Ke2 {[%clk 0:00:22.6]}
101. Bc7 {[%clk 0:00:39.1]} 101... Kf1 {[%clk 0:00:22.5]} 102. Kc5 {[%clk
0:00:38.1]} 102... Kg2 {[%clk 0:00:22.4]} 103. Kd6 {[%clk 0:00:37.4]} 103... Kh1
{[%clk 0:00:22.3]} 104. Kd7 {[%clk 0:00:36.8]} 104... Kg2 {[%clk 0:00:22.2]}
105. Kc8 {[%clk 0:00:36.6]} 105... Kf3 {[%clk 0:00:22.1]} 106. Kd8 {[%clk
0:00:35.8]} 106... Ke4 {[%clk 0:00:22]} 107. Kc8 {[%clk 0:00:35.1]} 107... Kd5
{[%clk 0:00:21.9]} 108. Kb8 {[%clk 0:00:35]} 108... Ke4 {[%clk 0:00:21.8]}
1/2-1/2

[Event "Live Chess"]
[Site "Chess.com"]
[Date "2023.05.21"]
[Round "-"]
[White "Driftboard"]
[Black "YrrriKharkiv"]
[Result "0-1"]
[WhiteElo "755"]
[BlackElo "2027"]
[TimeControl "300"]
[EndTime "23:32:57 PDT"]
[Termination "YrrriKharkiv won by checkmate"]

1. e4 {[%clk 0:04:58.9]} 1... e6 {[%clk 0:04:55.6]} 2. d4 {[%clk 0:04:57.2]}
2... d5 {[%clk 0:04:55.3]} 3. exd5 {[%clk 0:04:55.8]} 3... exd5 {[%clk
0:04:54.3]} 4. Qe2+ {[%clk 0:04:54.5]} 4... Be7 {[%clk 0:04:53.2]} 5. Nc3 {[%clk
0:04:50.3]} 5... Nc6 {[%clk 0:04:51.3]} 6. Qf3 {[%clk 0:04:43.7]} 6... Nxd4
{[%clk 0:04:48]} 7. Qxd5 {[%clk 0:04:39.1]} 7... Nxc2+ {[%clk 0:04:47]} 8. Kd2
{[%clk 0:04:29.4]} 8... Nxa1 {[%clk 0:04:45.5]} 9. Qxd8+ {[%clk 0:04:24.2]} 9...
Bxd8 {[%clk 0:04:44.3]} 10. Kd3 {[%clk 0:04:19.3]} 10... Nf6 {[%clk 0:04:37.4]}
11. Bg5 {[%clk 0:04:17.4]} 11... Bf5+ {[%clk 0:04:32.5]} 12. Ke3 {[%clk
0:03:54.7]} 12... Nc2+ {[%clk 0:04:28.5]} 13. Kf4 {[%clk 0:03:52.9]} 13... Bg6
{[%clk 0:04:25.7]} 14. Bxf6 {[%clk 0:03:51.4]} 14... Bxf6 {[%clk 0:04:23.7]} 15.
Nf3 {[%clk 0:03:49.9]} 15... O-O {[%clk 0:04:18.2]} 16. Ne5 {[%clk 0:03:46.4]}
16... Nd4 {[%clk 0:04:13]} 17. Nxg6 {[%clk 0:03:44.8]} 17... hxg6 {[%clk
0:04:11.6]} 18. Bc4 {[%clk 0:03:41.9]} 18... c6 {[%clk 0:04:03.5]} 19. Re1
{[%clk 0:03:36.7]} 19... Rfe8 {[%clk 0:04:01.9]} 20. Rxe8+ {[%clk 0:03:34.6]}
20... Rxe8 {[%clk 0:03:59.9]} 21. Ne4 {[%clk 0:03:28.2]} 21... Ne6+ {[%clk
0:03:52.5]} 22. Kf3 {[%clk 0:03:19.5]} 22... Be5 {[%clk 0:03:49.1]} 23. Bxe6
{[%clk 0:03:12.6]} 23... Rxe6 {[%clk 0:03:47.2]} 24. h3 {[%clk 0:03:09.3]} 24...
Bxb2 {[%clk 0:03:44.9]} 25. Nc5 {[%clk 0:03:01.2]} 25... Re7 {[%clk 0:03:42.8]}
26. g4 {[%clk 0:02:57]} 26... Bd4 {[%clk 0:03:39.7]} 27. Nb3 {[%clk 0:02:52.7]}
27... c5 {[%clk 0:03:38.9]} 28. Nxd4 {[%clk 0:02:51.3]} 28... cxd4 {[%clk
0:03:37.9]} 29. Kg2 {[%clk 0:02:45.3]} 29... d3 {[%clk 0:03:37.4]} 30. f3 {[%clk
0:02:43.8]} 30... d2 {[%clk 0:03:36.8]} 31. Kg3 {[%clk 0:02:42.9]} 31... d1=Q
{[%clk 0:03:36]} 32. a4 {[%clk 0:02:39.8]} 32... Qe1+ {[%clk 0:03:35]} 33. Kf4
{[%clk 0:02:36.5]} 33... Qe5# {[%clk 0:03:34]} 0-1

[Event "Live Chess"]
[Site "Chess.com"]
[Date "2023.05.21"]
[Round "-"]
[White "profpirate4"]
[Black "Mugzwang"]
[Result "0-1"]
[WhiteElo "1253"]
[BlackElo "1579"]
[TimeControl "300"]
[EndTime "23:33:09 PDT"]
[Termination "Mugzwang won by resignation"]

1. d4 {[%clk 0:04:58.4]} 1... d5 {[%clk 0:04:58.4]} 2. c4 {[%clk 0:04:57.9]}
2... e6 {[%clk 0:04:57.1]} 3. Nc3 {[%clk 0:04:57.2]} 3... Nf6 {[%clk 0:04:55.6]}
4. e3 {[%clk 0:04:55.5]} 4... c6 {[%clk 0:04:39.5]} 5. Bd3 {[%clk 0:04:52.4]}
5... dxc4 {[%clk 0:04:37.2]} 6. Bxc4 {[%clk 0:04:50.9]} 6... Nbd7 {[%clk
0:04:36.9]} 7. Qc2 {[%clk 0:04:48.9]} 7... Bd6 {[%clk 0:04:33.9]} 8. Nf3 {[%clk
0:04:47.1]} 8... a6 {[%clk 0:04:32.4]} 9. O-O {[%clk 0:04:46]} 9... b5 {[%clk
0:04:32]} 10. Bd3 {[%clk 0:04:44.9]} 10... O-O {[%clk 0:04:30.7]} 11. Ne5 {[%clk
0:04:41.6]} 11... Nxe5 {[%clk 0:04:26.4]} 12. dxe5 {[%clk 0:04:40.6]} 12... Bxe5
{[%clk 0:04:25.7]} 13. Rd1 {[%clk 0:04:38.3]} 13... Qc7 {[%clk 0:04:23.5]} 14.
f4 {[%clk 0:04:32.9]} 14... Bd6 {[%clk 0:04:18.6]} 15. Ne4 {[%clk 0:04:26.1]}
15... Nxe4 {[%clk 0:04:12.6]} 16. Bxe4 {[%clk 0:04:25.2]} 16... h6 {[%clk
0:04:12.3]} 17. Rf1 {[%clk 0:04:21.1]} 17... Bb7 {[%clk 0:04:03.7]} 18. Rf3
{[%clk 0:04:19.3]} 18... c5 {[%clk 0:04:01.7]} 19. Rh3 {[%clk 0:04:17.5]} 19...
Bxe4 {[%clk 0:03:54.4]} 20. Qxe4 {[%clk 0:04:15.1]} 20... Rad8 {[%clk
0:03:39.4]} 21. b4 {[%clk 0:04:09.4]} 21... c4 {[%clk 0:03:37.6]} 22. Bb2 {[%clk
0:04:07.7]} 22... c3 {[%clk 0:03:22.7]} 23. Rc1 {[%clk 0:04:01.2]} 23... Qc4
{[%clk 0:03:14.5]} 24. Qb7 {[%clk 0:03:43]} 24... Bxb4 {[%clk 0:02:56.5]} 25.
Qxa6 {[%clk 0:03:39.1]} 25... Rd2 {[%clk 0:02:45]} 26. Ba1 {[%clk 0:03:35.4]}
26... Qe2 {[%clk 0:02:40.2]} 27. Rg3 {[%clk 0:03:28.6]} 27... Rd1+ {[%clk
0:02:31.7]} 28. Rxd1 {[%clk 0:03:11.3]} 28... Qxd1+ {[%clk 0:02:30.6]} 29. Kf2
{[%clk 0:03:05.9]} 29... Qxa1 {[%clk 0:02:28.5]} 0-1

[Event "Live Chess"]
[Site "Chess.com"]
[Date "2023.05.21"]
[Round "-"]
[White "ProfPoisson"]
[Black "MJMykh"]
[Result "1-0"]
[WhiteElo "1160"]
[BlackElo "969"]
[TimeControl "300"]
[EndTime "23:33:12 PDT"]
[Termination "ProfPoisson won on time"]

1. e4 {[%clk 0:04:55]} 1... e5 {[%clk 0:04:58.7]} 2. Nf3 {[%clk 0:04:50.3]} 2...
Nc6 {[%clk 0:04:57.8]} 3. d4 {[%clk 0:04:46.8]} 3... exd4 {[%clk 0:04:56.5]} 4.
Bc4 {[%clk 0:04:45.1]} 4... Bc5 {[%clk 0:04:53.8]} 5. c3 {[%clk 0:04:42.4]} 5...
dxc3 {[%clk 0:04:51.6]} 6. Bxf7+ {[%clk 0:04:38.8]} 6... Kxf7 {[%clk 0:04:49.3]}
7. Qd5+ {[%clk 0:04:37.2]} 7... Ke8 {[%clk 0:04:48]} 8. Qh5+ {[%clk 0:04:34.8]}
8... g6 {[%clk 0:04:37]} 9. Qxc5 {[%clk 0:04:32.6]} 9... Nf6 {[%clk 0:04:27.3]}
10. Nxc3 {[%clk 0:04:21.5]} 10... d6 {[%clk 0:04:26]} 11. Qe3 {[%clk 0:04:07.5]}
11... Ng4 {[%clk 0:04:21]} 12. Qe2 {[%clk 0:03:51.1]} 12... b6 {[%clk
0:04:13.4]} 13. O-O {[%clk 0:03:49.1]} 13... Be6 {[%clk 0:03:59.2]} 14. Bg5
{[%clk 0:03:45.7]} 14... Ne7 {[%clk 0:03:44.1]} 15. Nd5 {[%clk 0:03:41.6]} 15...
Bxd5 {[%clk 0:03:38.9]} 16. exd5 {[%clk 0:03:39.1]} 16... h6 {[%clk 0:03:16.4]}
17. Bxe7 {[%clk 0:03:23]} 17... Qxe7 {[%clk 0:03:14.2]} 18. Qb5+ {[%clk
0:03:20.5]} 18... Qd7 {[%clk 0:03:04.5]} 19. Rfe1+ {[%clk 0:03:17]} 19... Kd8
{[%clk 0:03:03]} 20. Qc6 {[%clk 0:02:59]} 20... Qxc6 {[%clk 0:02:58.7]} 21. dxc6
{[%clk 0:02:56.8]} 21... Re8 {[%clk 0:02:44.6]} 22. Rxe8+ {[%clk 0:02:43.5]}
22... Kxe8 {[%clk 0:02:43.1]} 23. Re1+ {[%clk 0:02:42.6]} 23... Kf7 {[%clk
0:02:41.2]} 24. Nd4 {[%clk 0:02:39.3]} 24... Ne5 {[%clk 0:02:32.4]} 25. f4
{[%clk 0:02:36.1]} 25... Nc4 {[%clk 0:02:25.8]} 26. b3 {[%clk 0:02:26.9]} 26...
Nb2 {[%clk 0:02:09]} 27. Ne6 {[%clk 0:02:24]} 27... Rc8 {[%clk 0:02:03.7]} 28.
g4 {[%clk 0:02:14.3]} 28... Nd3 {[%clk 0:01:58.4]} 29. Re3 {[%clk 0:02:10]}
29... Nb4 {[%clk 0:01:50.3]} 30. f5 {[%clk 0:01:54.6]} 30... gxf5 {[%clk
0:01:32.1]} 31. gxf5 {[%clk 0:01:50.3]} 31... Nxc6 {[%clk 0:01:28.9]} 32. a3
{[%clk 0:01:47]} 32... Ne7 {[%clk 0:01:18]} 33. Rf3 {[%clk 0:01:38.7]} 33... Kf6
{[%clk 0:01:15.7]} 34. Nd4 {[%clk 0:01:30.7]} 34... c5 {[%clk 0:01:12.9]} 35.
Nb5 {[%clk 0:01:19.7]} 35... Rd8 {[%clk 0:00:52.6]} 36. Nxa7 {[%clk 0:01:08.5]}
36... Nxf5 {[%clk 0:00:50.9]} 37. Nc6 {[%clk 0:01:01.1]} 37... Rc8 {[%clk
0:00:40.7]} 38. Ne7 {[%clk 0:00:55.6]} 38... Kxe7 {[%clk 0:00:35.7]} 39. Rxf5
{[%clk 0:00:53.2]} 39... Rh8 {[%clk 0:00:31.7]} 40. Kf2 {[%clk 0:00:48.1]} 40...
Ke6 {[%clk 0:00:28.2]} 41. Rf3 {[%clk 0:00:41.2]} 41... h5 {[%clk 0:00:22.4]}
42. h4 {[%clk 0:00:38.9]} 42... Kd5 {[%clk 0:00:19.1]} 43. Ke3 {[%clk
0:00:37.7]} 43... Kc6 {[%clk 0:00:18]} 44. Rf5 {[%clk 0:00:35.5]} 44... Re8+
{[%clk 0:00:17.1]} 45. Kf4 {[%clk 0:00:33.8]} 45... Rh8 {[%clk 0:00:16.2]} 46.
Rf6 {[%clk 0:00:30]} 46... Kd7 {[%clk 0:00:15.3]} 47. Kg5 {[%clk 0:00:28.6]}
47... Ke7 {[%clk 0:00:14]} 48. Rh6 {[%clk 0:00:27.6]} 48... Rxh6 {[%clk
0:00:12.2]} 49. Kxh6 {[%clk 0:00:26.5]} 49... Kf7 {[%clk 0:00:12]} 50. Kxh5
{[%clk 0:00:25.7]} 50... Kg7 {[%clk 0:00:11.8]} 51. Kg5 {[%clk 0:00:24.8]} 51...
Kh7 {[%clk 0:00:11.6]} 52. Kf6 {[%clk 0:00:23.9]} 52... Kg8 {[%clk 0:00:10.5]}
53. Ke6 {[%clk 0:00:23.8]} 53... Kh7 {[%clk 0:00:09.6]} 54. Kxd6 {[%clk
0:00:23.7]} 54... Kh6 {[%clk 0:00:09.2]} 55. Kc6 {[%clk 0:00:23.6]} 55... Kh5
{[%clk 0:00:08.8]} 56. Kxb6 {[%clk 0:00:23.4]} 56... Kxh4 {[%clk 0:00:08.6]} 57.
Kxc5 {[%clk 0:00:23]} 57... Kg4 {[%clk 0:00:07.8]} 58. a4 {[%clk 0:00:22.9]}
58... Kf5 {[%clk 0:00:07.6]} 59. a5 {[%clk 0:00:22.3]} 59... Ke6 {[%clk
0:00:07.1]} 60. a6 {[%clk 0:00:22.2]} 60... Kd7 {[%clk 0:00:06.7]} 61. a7 {[%clk
0:00:22.1]} 61... Kc7 {[%clk 0:00:06.6]} 62. a8=Q {[%clk 0:00:21.4]} 62... Kd7
{[%clk 0:00:06.2]} 63. Qb7+ {[%clk 0:00:20]} 63... Ke6 {[%clk 0:00:06.1]} 64.
Qc6+ {[%clk 0:00:18.3]} 64... Kf5 {[%clk 0:00:05.8]} 65. Kd4 {[%clk 0:00:17.1]}
65... Kf4 {[%clk 0:00:05.7]} 66. Qe6 {[%clk 0:00:15.2]} 66... Kg5 {[%clk
0:00:05.6]} 67. Qf7 {[%clk 0:00:14.2]} 67... Kg4 {[%clk 0:00:04.7]} 68. Ke4
{[%clk 0:00:13.3]} 68... Kg3 {[%clk 0:00:04.4]} 69. Qf6 {[%clk 0:00:11.2]} 69...
Kg2 {[%clk 0:00:04]} 70. Ke3 {[%clk 0:00:10.2]} 70... Kg3 {[%clk 0:00:03.6]} 71.
Qf4+ {[%clk 0:00:09]} 71... Kh3 {[%clk 0:00:02.7]} 72. Qg5 {[%clk 0:00:07.3]}
72... Kh2 {[%clk 0:00:01.8]} 73. Kf2 {[%clk 0:00:06.4]} 1-0

[Event "Live Chess"]
[Site "Chess.com"]
[Date "2023.05.21"]
[Round "-"]
[White "Rusty_Bridges"]
[Black "Goblinbasher"]
[Result "1-0"]
[WhiteElo "1495"]
[BlackElo "1236"]
[TimeControl "300"]
[EndTime "23:33:21 PDT"]
[Termination "Rusty_Bridges won by resignation"]

1. e4 {[%clk 0:04:53.9]} 1... c5 {[%clk 0:04:58.4]} 2. Be2 {[%clk 0:04:52.1]}
2... e6 {[%clk 0:04:56.6]} 3. Nf3 {[%clk 0:04:49.7]} 3... Nc6 {[%clk 0:04:55]}
4. d3 {[%clk 0:04:46.3]} 4... Qc7 {[%clk 0:04:48.1]} 5. O-O {[%clk 0:04:45]}
5... Nf6 {[%clk 0:04:46.9]} 6. Nbd2 {[%clk 0:04:41.8]} 6... d5 {[%clk
0:04:36.9]} 7. exd5 {[%clk 0:04:36.9]} 7... exd5 {[%clk 0:04:27.8]} 8. Re1
{[%clk 0:04:35.7]} 8... Be7 {[%clk 0:04:24.6]} 9. Nb3 {[%clk 0:04:29.7]} 9... b6
{[%clk 0:04:16.8]} 10. Bg5 {[%clk 0:04:25.1]} 10... O-O {[%clk 0:04:14.5]} 11.
Bf1 {[%clk 0:04:21.9]} 11... Bg4 {[%clk 0:03:53.8]} 12. h3 {[%clk 0:04:18.9]}
12... Bh5 {[%clk 0:03:37.4]} 13. Be2 {[%clk 0:04:09.6]} 13... Rae8 {[%clk
0:03:25.2]} 14. Nh4 {[%clk 0:04:07.5]} 14... Bxe2 {[%clk 0:03:21.7]} 15. Rxe2
{[%clk 0:04:03.5]} 15... Bd8 {[%clk 0:03:11.2]} 16. Nf5 {[%clk 0:03:54.7]} 16...
Rxe2 {[%clk 0:03:00.9]} 17. Qxe2 {[%clk 0:03:52.9]} 17... Qe5 {[%clk 0:02:41]}
18. Qxe5 {[%clk 0:03:33.4]} 18... Nxe5 {[%clk 0:02:39.3]} 19. Re1 {[%clk
0:03:26.2]} 19... Nc6 {[%clk 0:02:29.6]} 20. Ne3 {[%clk 0:03:05.8]} 20... h6
{[%clk 0:02:26.5]} 21. Bxf6 {[%clk 0:03:01.9]} 21... gxf6 {[%clk 0:02:24.4]} 22.
Nxd5 {[%clk 0:02:59.8]} 22... Ne5 {[%clk 0:02:18]} 23. Nd2 {[%clk 0:02:46.4]}
23... Kg7 {[%clk 0:02:12.3]} 24. Re3 {[%clk 0:02:39.7]} 24... h5 {[%clk
0:02:07.2]} 25. Rg3+ {[%clk 0:02:36.2]} 25... Kh7 {[%clk 0:02:02.5]} 26. Ne4
{[%clk 0:02:33.7]} 26... Rg8 {[%clk 0:02:00.5]} 27. Rxg8 {[%clk 0:02:30.4]}
27... Kxg8 {[%clk 0:01:59.1]} 28. Nexf6+ {[%clk 0:02:28.2]} 28... Bxf6 {[%clk
0:01:57.7]} 29. Nxf6+ {[%clk 0:02:26.7]} 29... Kg7 {[%clk 0:01:56]} 30. Nxh5+
{[%clk 0:02:25.8]} 30... Kg6 {[%clk 0:01:55.3]} 31. Nf4+ {[%clk 0:02:24.6]}
31... Kf5 {[%clk 0:01:50.3]} 32. g3 {[%clk 0:02:21.3]} 32... Nf3+ {[%clk
0:01:46.7]} 33. Kf1 {[%clk 0:02:17.6]} 33... Nd4 {[%clk 0:01:39.3]} 34. c3
{[%clk 0:02:13.1]} 34... Ne6 {[%clk 0:01:23.9]} 35. Nxe6 {[%clk 0:02:11]} 35...
fxe6 {[%clk 0:01:22.8]} 36. Ke2 {[%clk 0:02:10.3]} 36... e5 {[%clk 0:01:20.6]}
37. Ke3 {[%clk 0:02:09.4]} 37... a6 {[%clk 0:01:16]} 38. h4 {[%clk 0:02:08.3]}
38... b5 {[%clk 0:01:11.8]} 39. f4 {[%clk 0:02:06.8]} 39... exf4+ {[%clk
0:01:06]} 40. gxf4 {[%clk 0:02:05.9]} 40... a5 {[%clk 0:00:57]} 41. d4 {[%clk
0:02:04.4]} 41... cxd4+ {[%clk 0:00:55.4]} 42. cxd4 {[%clk 0:02:03.2]} 1-0

[Event "Live Chess"]
[Site "Chess.com"]
[Date "2023.05.21"]
[Round "-"]
[White "AlanPaling"]
[Black "febray_27"]
[Result "0-1"]
[WhiteElo "1360"]
[BlackElo "2000"]
[TimeControl "300"]
[EndTime "23:33:54 PDT"]
[Termination "febray_27 won on time"]

1. c4 {[%clk 0:04:58.7]} 1... Nf6 {[%clk 0:04:32.7]} 2. Nc3 {[%clk 0:04:57.3]}
2... g6 {[%clk 0:04:31.9]} 3. g3 {[%clk 0:04:55.5]} 3... Bg7 {[%clk 0:04:28]} 4.
Bg2 {[%clk 0:04:54.7]} 4... O-O {[%clk 0:04:26.7]} 5. e4 {[%clk 0:04:53.8]} 5...
e5 {[%clk 0:04:24.8]} 6. Nge2 {[%clk 0:04:52.5]} 6... c6 {[%clk 0:04:24.3]} 7.
d4 {[%clk 0:04:49.6]} 7... exd4 {[%clk 0:04:22.2]} 8. Nxd4 {[%clk 0:04:47.7]}
8... Qe7 {[%clk 0:04:19.6]} 9. O-O {[%clk 0:04:42.9]} 9... d6 {[%clk 0:03:53.3]}
10. h3 {[%clk 0:04:41.1]} 10... Nbd7 {[%clk 0:03:34.2]} 11. Be3 {[%clk
0:04:34.7]} 11... Ne5 {[%clk 0:03:30.3]} 12. b3 {[%clk 0:04:28]} 12... a6 {[%clk
0:03:25.2]} 13. f4 {[%clk 0:04:20.8]} 13... Ned7 {[%clk 0:03:22.8]} 14. Kh2
{[%clk 0:04:18.7]} 14... Nc5 {[%clk 0:03:21.6]} 15. Qc2 {[%clk 0:03:57.2]} 15...
Re8 {[%clk 0:03:17.3]} 16. Rae1 {[%clk 0:03:34.7]} 16... Nfxe4 {[%clk
0:03:01.6]} 17. Nxe4 {[%clk 0:03:29.3]} 17... Nxe4 {[%clk 0:03:00.4]} 18. Bxe4
{[%clk 0:03:18.5]} 18... Qxe4 {[%clk 0:02:59]} 19. Qxe4 {[%clk 0:03:16.5]} 19...
Rxe4 {[%clk 0:02:58.3]} 20. Nc2 {[%clk 0:03:01.8]} 20... Bf5 {[%clk 0:02:46.3]}
21. g4 {[%clk 0:02:52.9]} 21... Bd7 {[%clk 0:02:44.7]} 22. Bd2 {[%clk
0:02:47.1]} 22... Rae8 {[%clk 0:02:43.5]} 23. Rxe4 {[%clk 0:02:45.2]} 23... Rxe4
{[%clk 0:02:42.3]} 24. Re1 {[%clk 0:02:42.8]} 24... d5 {[%clk 0:02:31.9]} 25.
Rxe4 {[%clk 0:02:37.8]} 25... dxe4 {[%clk 0:02:30.9]} 26. Kg2 {[%clk 0:02:24.3]}
26... f5 {[%clk 0:02:29.6]} 27. g5 {[%clk 0:02:21.7]} 27... Kf7 {[%clk
0:02:27.9]} 28. Kf2 {[%clk 0:02:17.9]} 28... b5 {[%clk 0:02:27]} 29. cxb5 {[%clk
0:02:12.2]} 29... cxb5 {[%clk 0:02:26.5]} 30. Be3 {[%clk 0:02:07.6]} 30... Ke6
{[%clk 0:02:25.2]} 31. Bd4 {[%clk 0:02:04.2]} 31... Bf8 {[%clk 0:02:20.4]} 32.
Ke3 {[%clk 0:02:00.4]} 32... Bd6 {[%clk 0:02:18.9]} 33. h4 {[%clk 0:01:56.4]}
33... Bf8 {[%clk 0:02:17.7]} 34. Kd2 {[%clk 0:01:29.3]} 34... Kd5 {[%clk
0:02:16.7]} 35. Ke3 {[%clk 0:01:23]} 35... a5 {[%clk 0:02:14]} 36. a3 {[%clk
0:01:06.7]} 36... a4 {[%clk 0:02:04]} 37. b4 {[%clk 0:00:53.2]} 37... h6 {[%clk
0:01:57.8]} 38. Bb6 {[%clk 0:00:36.8]} 38... hxg5 {[%clk 0:01:54.3]} 39. fxg5
{[%clk 0:00:28.6]} 39... Kc4 {[%clk 0:01:50.1]} 40. Nd4 {[%clk 0:00:16.1]} 40...
Bd6 {[%clk 0:01:33.3]} 41. Bd8 {[%clk 0:00:02.5]} 41... Be5 {[%clk 0:01:20.7]}
42. Bf6 {[%clk 0:00:00.5]} 42... Bxd4+ {[%clk 0:01:07.3]} 0-1